bitfinex/quotes_ETHUSD_20220308
["timestamp","ask_amount","ask_price","bid_price","bid_amount"]
[1646729753489,0.91964732,2567.5,2566.7,0.02362116]
[1646729753685,3.5,2567.4,2566.8,1.59196425]
[1646729753922,1.21964732,2567.5,2567.0,0.00522783]
[1646729754124,0.3,2567.5,2567.0,0.00522783]
[1646729754322,0.3,2567.6,2567.0,0.00522783]
[1646729754524,2.92268,2567.7,2567.0,0.00522783]
[1646729754725,2.92268,2567.7,2566.8,0.02091309]
[1646729754726,2.92268,2567.7,2566.7,0.02362116]
[1646729754922,2.92268,2567.7,2566.8,1.59193018]
[1646729755125,0.97438,2567.3,2567.0,0.00522767]
[1646729755924,0.97438,2567.3,2566.5,1.948683]
[1646729756325,0.97438,2567.3,2567.0,0.00522758]
[1646729756524,0.97438,2567.3,2566.6,0.02091305]
[1646729757125,1.05441606,2566.9,2566.2,0.00219835]
[1646729757327,1.05441606,2566.9,2566.2,3.5409721]
[1646729757328,0.97454,2566.8,2566.2,3.5409721]
[1646729757527,0.97454,2566.8,2566.3,1.5921333]
[1646729757801,1.27454,2566.8,2566.1,0.19729833]
[1646729758001,0.3,2566.8,2565.7,0.00219835]
[1646729758203,0.97036663,2566.5,2565.7,0.00219835]
[1646729758407,3.8,2566.8,2565.9,0.974583]
[1646729758408,0.3,2566.7,2565.9,0.974583]
[1646729758602,0.3,2566.7,2566.3,0.00523247]
[1646729758803,0.3,2566.9,2566.3,0.00523247]
[1646729759004,0.97467,2566.5,2566.3,0.00523247]
[1646729759605,0.97467,2566.5,2566.2,0.9745266]
[1646729759806,0.97467,2566.5,2566.3,0.00523254]
[1646729760809,0.97467,2566.5,2566.3,0.3]
[1646729761017,0.97467,2566.5,2566.3,0.30523254]
[1646729762029,0.97467,2566.5,2566.3,0.3]
[1646729762228,0.97467,2566.5,2566.3,0.30522851]
[1646729763228,0.97467,2566.5,2566.3,0.3]
[1646729763432,0.97467,2566.5,2566.3,0.00522851]
[1646729763831,0.97467,2566.5,2566.3,0.97966071]
[1646729764432,0.97467,2566.5,2566.3,13.03966071]
[1646729764631,0.97467,2566.5,2566.3,13.0344322]
[1646729764831,0.97467,2566.5,2566.3,13.03966071]
[1646729765032,0.97467,2566.5,2566.4,14.3453372]
[1646729765275,0.97467,2566.5,2566.4,13.9520372]
[1646729765474,0.97467,2566.5,2566.4,1.8920372]
[1646729765676,0.97467,2566.5,2566.4,0.3]
[1646729765875,0.97467,2566.5,2566.3,0.97966091]
[1646729766077,0.97467,2566.5,2566.3,0.00522871]
[1646729766681,0.97467,2566.5,2565.9,2.9236284]
[1646729766875,0.97467,2566.5,2566.0,1.59222533]
[1646729767176,0.97467,2566.5,2566.3,0.00522878]
[1646729767979,0.97467,2566.5,2565.9,1.9490684]
[1646729768181,0.97467,2566.5,2566.3,0.00522878]
[1646729769226,0.97467,2566.5,2566.1,0.3]
[1646729769429,0.97467,2566.5,2566.3,0.00522876]
[1646729769627,0.97467,2566.5,2566.3,0.96064749]
[1646729769828,0.97467,2566.5,2566.4,1.98532176]
[1646729770030,2.92307,2567.2,2567.0,1.69811867]
[1646729772034,3.22307,2567.2,2567.0,1.69811867]
[1646729772236,2.92307,2567.2,2567.0,1.69811867]
[1646729772434,2.92307,2567.2,2566.4,0.00219835]
[1646729772435,3.22307,2567.2,2566.4,0.00219835]
[1646729772673,3.15507,2567.2,2566.3,0.02091658]
[1646729772888,3.15507,2567.2,2566.2,1.95100215]
[1646729773377,2.85507,2567.2,2566.3,1.59205683]
[1646729773580,2.85507,2567.2,2566.5,0.9744661]
[1646729773779,2.85507,2567.2,2566.5,1.2744661]
[1646729773982,2.85507,2567.2,2566.7,0.97428]
[1646729774479,2.85507,2567.2,2566.7,2.40996614]
[1646729775281,2.85507,2567.2,2566.7,3.38426784]
[1646729776528,2.85507,2567.2,2566.8,0.0055698]
[1646729777627,2.85507,2567.2,2566.7,2.2485817]
[1646729777831,2.85507,2567.2,2566.8,0.00556982]
[1646729778733,2.85507,2567.2,2566.7,3.24372542]
[1646729779138,2.85507,2567.2,2566.8,0.00556982]
[1646729779735,2.85507,2567.2,2567.1,1.04819368]
[1646729779935,0.97434,2567.3,2567.1,1.34819368]
[1646729780387,5.45195,2568.2,2567.1,13.40819368]
[1646729780388,0.00488065,2567.4,2567.1,13.40819368]
[1646729780578,0.00488065,2567.4,2567.3,12.06]
[1646729780779,8.065e-05,2567.4,2567.3,12.36]
[1646729780981,8.065e-05,2567.4,2567.3,15.8107069]
[1646729781179,2.33698,2568.2,2567.3,15.8107069]
[1646729781389,0.97377,2568.1,2567.6,12.4533]
[1646729781578,0.97377,2568.1,2567.8,12.06]
[1646729781782,0.97377,2568.1,2567.9,0.466]
[1646729781980,0.97377,2568.1,2567.9,0.766]
[1646729782180,0.97377,2568.1,2567.9,2.70768845]
[1646729782678,0.97523437,2568.1,2567.9,3.70768845]
[1646729782882,0.97523437,2568.1,2567.9,15.76768845]
[1646729783083,0.12611437,2568.2,2568.0,5.8933]
[1646729783282,3.896,2568.9,2568.2,12.06]
[1646729783482,3.896,2568.9,2568.2,13.0337]
[1646729783682,3.896,2568.9,2568.2,0.9737]
[1646729783953,0.97372,2568.7,2567.9,1.9475538]
[1646729784127,4.0105788,2568.9,2567.7,0.02362116]
[1646729784128,2.92211,2568.6,2567.7,0.02362116]
[1646729784329,2.92211,2568.6,2567.8,0.9739544]
[1646729784527,3.5,2568.5,2567.8,0.9739544]
[1646729784727,3.22211,2568.6,2567.8,0.9739544]
[1646729785131,0.97404,2568.4,2567.8,0.9739544]
[1646729786127,0.97404,2568.4,2568.1,1.04899549]
[1646729786328,0.97404,2568.4,2568.1,0.3]
[1646729786729,0.97404,2568.4,2567.9,2.2476856]
[1646729787532,0.00486559,2568.3,2567.9,1.9476856]
[1646729787784,2.92671559,2568.3,2567.9,1.9476856]
[1646729787981,2.92671559,2568.3,2567.7,0.02362116]
[1646729787982,3.22671559,2568.3,2567.7,1.97142346]
[1646729788382,3.22185,2568.3,2567.7,1.97142346]
[1646729788782,0.00486559,2568.1,2567.7,1.97142346]
[1646729788982,0.97881559,2568.1,2567.7,1.97142346]
[1646729789282,0.97881559,2568.1,2567.7,2.27142346]
[1646729789682,0.97395,2568.1,2567.7,2.27142346]
[1646729789884,0.00486559,2568.0,2567.7,2.27142346]
[1646729790382,0.00486559,2568.0,2567.7,1.97142346]
[1646729790784,0.97395,2568.1,2567.7,1.97142346]
[1646729791186,0.00486559,2568.0,2567.7,2.27142346]
[1646729791827,0.00486559,2568.0,2567.8,1.07420195]
[1646729792030,0.97395,2568.1,2567.8,1.07420195]
[1646729792430,0.00486559,2568.0,2567.8,1.07420195]
[1646729792632,0.00486559,2568.0,2567.8,3.99593605]
[1646729792833,0.97395,2568.1,2568.0,0.00749925]
[1646729793034,0.2786126,2569.0,2568.0,0.00749925]
[1646729793233,3.89482,2569.2,2568.1,12.06]
[1646729793432,3.89482,2569.2,2568.3,12.06]
[1646729793433,0.155931,2568.8,2568.3,12.06]
[1646729793634,0.97367,2568.5,2568.4,2.05672677]
[1646729793836,0.97367,2568.5,2568.4,2.35672277]
[1646729794034,0.97367,2568.5,2568.4,0.3]
[1646729794235,0.97367,2568.5,2568.3,4.1943579]
[1646729794433,0.97367,2568.5,2568.3,2.2471879]
[1646729796076,0.97852342,2568.5,2568.3,2.2471879]
[1646729796677,0.97852342,2568.5,2568.3,2.2407929]
[1646729796878,0.97367,2568.5,2568.3,2.2407929]
[1646729797078,0.97852342,2568.5,2568.3,2.2407929]
[1646729798081,0.97367,2568.5,2568.3,2.2407929]
[1646729798284,0.97852342,2568.5,2568.3,2.2407929]
[1646729799324,0.97367,2568.5,2568.3,2.2407929]
[1646729799525,0.97852342,2568.5,2568.3,2.2407929]
[1646729800526,0.97367,2568.5,2568.3,2.2407929]
[1646729800725,0.97852342,2568.5,2568.3,2.2407929]
[1646729800929,0.97852342,2568.5,2568.3,1.9407929]
[1646729801725,0.97367,2568.5,2568.3,1.9407929]
[1646729801926,0.97852342,2568.5,2568.3,1.9407929]
[1646729802328,0.97852342,2568.5,2568.3,2.2407929]
[1646729802878,0.97367,2568.5,2568.3,2.2407929]
[1646729803079,0.97852342,2568.5,2568.3,2.2407929]
[1646729803879,0.97852342,2568.5,2568.4,12.06]
[1646729804081,0.97367,2568.5,2568.4,12.06]
[1646729804280,0.97852342,2568.5,2568.3,4.1880029]
[1646729804682,0.97852342,2568.5,2568.3,2.2407929]
[1646729805282,0.97367,2568.5,2568.3,2.2407929]
[1646729805479,0.97512885,2568.5,2568.3,2.2407929]
[1646729805680,2.92211,2568.6,2568.3,7.7407929]
[1646729805881,3.89482,2569.2,2568.5,12.06]
[1646729806081,3.89482,2569.2,2568.5,3.8939194]
[1646729806281,3.89482,2569.2,2568.6,0.89692395]
[1646729806526,3.89482,2569.2,2568.6,1.19692395]
[1646729806827,0.97345,2569.1,2568.6,1.19692395]
[1646729807026,0.97345,2569.1,2568.6,1.2734797]
[1646729807226,0.97345,2569.1,2568.5,1.94696]
[1646729807227,3.5,2569.0,2568.5,1.94696]
[1646729807427,3.5,2569.0,2568.2,4.8680348]
[1646729807428,3.5,2569.0,2568.1,0.58701364]
[1646729807627,3.5,2569.0,2568.0,0.00749925]
[1646729808031,0.8770123,2568.7,2568.0,0.00749925]
[1646729808233,0.97385,2568.6,2568.0,0.00749925]
[1646729808434,0.97385,2568.6,2568.3,0.9737752]
[1646729808630,0.97385,2568.6,2568.1,0.97378]
[1646729809231,0.97869977,2568.6,2568.1,1.27378]
[1646729809431,0.97869977,2568.6,2568.3,0.9737752]
[1646729809631,0.97869977,2568.6,2568.3,2.20124436]
[1646729809831,0.97869977,2568.6,2568.3,2.50124436]
[1646729810031,0.97385,2568.6,2568.3,2.50124436]
[1646729810292,0.97869977,2568.6,2568.3,14.56124436]
[1646729810495,0.97869977,2568.6,2568.3,2.50124436]
[1646729811296,0.97385,2568.6,2568.4,12.06]
[1646729811495,0.97385,2568.6,2568.5,12.06]
[1646729811694,0.97530775,2568.6,2568.5,12.06]
[1646729811894,0.97530775,2568.6,2568.5,12.776]
[1646729812495,0.97385,2568.6,2568.5,12.776]
[1646729813102,1.52564457,2568.7,2568.5,12.776]
[1646729813300,1.52564457,2568.7,2568.5,14.7231242]
[1646729813698,1.52418682,2568.7,2568.5,14.7231242]
[1646729813937,1.52903659,2568.7,2568.5,14.7231242]
[1646729814127,0.97385,2568.6,2568.5,14.7231242]
[1646729815131,0.97385,2568.6,2568.5,2.6631242]
[1646729815928,0.97385,2568.6,2568.5,2.1971242]
[1646729816529,0.97385,2568.6,2568.2,3.8943951]
[1646729816930,0.97385,2568.6,2568.2,4.79522606]
[1646729817534,0.97385,2568.6,2568.3,1.94722]
[1646729817535,0.00484333,2568.5,2568.3,1.94722]
[1646729818402,0.97385,2568.6,2568.3,14.00722]
[1646729818800,0.00484333,2568.5,2568.3,14.00722]
[1646729819604,0.97385,2568.6,2568.3,14.00722]
[1646729820005,0.00484977,2568.5,2568.3,14.00722]
[1646729820604,0.00484977,2568.5,2568.3,14.98095]
[1646729820808,0.97385,2568.6,2568.3,14.98095]
[1646729821007,0.97385,2568.6,2568.3,14.976665]
[1646729821209,0.00484977,2568.5,2568.3,7.237665]
[1646729821624,0.00484977,2568.5,2568.2,3.62014106]
[1646729821825,0.00484977,2568.5,2568.4,12.06]
[1646729822025,0.97385,2568.6,2568.4,13.65141209]
[1646729822325,0.00484977,2568.5,2568.4,12.36]
[1646729822524,0.00484977,2568.5,2568.4,13.33359]
[1646729823028,0.00484977,2568.5,2568.4,7.49166]
[1646729823229,0.97385,2568.6,2568.4,7.49166]
[1646729823631,0.97869977,2568.6,2568.4,7.49166]
[1646729824229,0.97869977,2568.6,2568.4,7.79166]
[1646729824430,0.97385,2568.6,2568.4,7.79166]
[1646729824835,0.97869977,2568.6,2568.4,7.78952169]
[1646729825275,0.97869977,2568.6,2568.5,8.1097638]
[1646729825677,0.97385,2568.6,2568.5,8.1097638]
[1646729826476,0.97385,2568.6,2568.4,1.73745169]
[1646729826477,4.47385,2568.6,2568.3,2.92095]
[1646729826680,4.47385,2568.6,2568.3,0.97373]
[1646729826879,0.97385,2568.6,2568.1,12.06]
[1646729827578,1.94767,2568.6,2568.2,1.23027612]
[1646729827783,0.97385,2568.6,2568.2,14.56401612]
[1646729827983,0.89722,2568.6,2568.4,12.06]
[1646729828182,0.89722,2568.6,2568.5,12.526]
[1646729828939,0.89722,2568.6,2568.5,13.526]
[1646729829728,0.89722,2568.6,2568.5,0.466]
[1646729829928,0.89722,2568.6,2568.4,14.306887]
[1646729830129,0.89722,2568.6,2568.4,0.3]
[1646729830328,0.89722,2568.6,2568.2,2.53027612]
[1646729830530,0.89722,2568.6,2568.0,1.95490925]
[1646729830728,0.89722,2568.6,2568.0,15.96228475]
[1646729830729,4.39722,2568.6,2568.0,15.96228475]
[1646729830929,0.89722,2568.6,2568.0,15.96228475]
[1646729831128,0.00403213,2568.5,2568.0,14.01490925]
[1646729831327,1.94755,2568.4,2568.0,14.01490925]
[1646729831731,2.24755,2568.4,2568.0,0.00749925]
[1646729832331,3.22552198,2568.4,2567.6,2.7214]
[1646729832530,3.38143898,2568.4,2567.5,1.94777]
[1646729832980,0.97397,2568.2,2567.5,1.94777]
[1646729833180,0.97397,2568.2,2567.3,18.86409662]
[1646729833181,2.07755945,2568.2,2567.3,18.8591]
[1646729833381,0.97417,2568.1,2567.3,0.0049965]
[1646729833583,2.9225,2568.1,2567.3,0.0049965]
[1646729833783,3.5,2568.0,2567.3,0.0049965]
[1646729834383,4.47417,2568.0,2567.1,13.0340863]
[1646729834583,4.77417,2568.0,2567.1,13.0340863]
[1646729835185,1.27417,2568.0,2567.2,13.03412]
[1646729835585,1.27417,2568.0,2567.2,0.97412]
[1646729835985,1.27417,2568.0,2567.2,1.27412]
[1646729836631,1.430106,2568.0,2567.2,1.27412]
[1646729836835,4.930106,2568.0,2567.2,0.97412]
[1646729837033,4.77417,2568.0,2567.3,0.0053663]
[1646729837232,3.0,2567.9,2567.1,0.02146684]
[1646729837432,0.97426,2567.7,2567.1,0.02146684]
[1646729837633,3.5,2567.6,2567.1,0.02146684]
[1646729837836,4.5861019,2567.6,2567.1,0.02146684]
[1646729838037,3.5,2567.6,2566.6,0.9742311]
[1646729838235,0.3,2567.7,2566.7,12.06]
[1646729838437,12.34045591,2568.1,2566.8,0.3933]
[1646729838438,0.97431,2567.5,2566.8,0.3933]
[1646729838636,11.0592,2568.1,2566.9,1.16677488]
[1646729838840,11.0592,2568.1,2567.0,12.76077488]
[1646729839038,11.0592,2568.1,2567.2,12.06]
[1646729839235,2.24599699,2568.3,2567.4,12.06]
[1646729839636,1.1904,2568.3,2567.4,12.06]
[1646729839839,1.1904,2568.3,2567.2,1.94792]
[1646729839840,1.94792,2567.9,2567.2,1.94792]
[1646729840186,1.94792,2567.9,2566.6,1.93436651]
[1646729840187,1.9487,2567.6,2566.4,3.03027862]
[1646729840388,3.5,2567.5,2566.4,1.0]
[1646729840596,3.5,2567.5,2565.9,0.00219835]
[1646729840597,8.3933,2567.4,2565.9,0.00219835]
[1646729840781,1.22833318,2566.9,2565.9,1.0731757]
[1646729840994,1.22833318,2566.9,2565.9,1.07097735]
[1646729840995,5.44938,2566.8,2565.9,1.07097735]
[1646729841182,5.44938,2566.8,2565.7,0.00219835]
[1646729841388,6.72402,2566.8,2565.7,0.00219835]
[1646729841782,0.97469,2566.7,2566.2,0.0055439]
[1646729842181,1.27469,2566.7,2566.2,0.0055439]
[1646729842786,1.27469,2566.7,2566.0,12.94048555]
[1646729842987,1.27469,2566.7,2566.3,0.00554374]
[1646729844030,1.27469,2566.7,2566.0,1.18048555]
[1646729844230,1.27469,2566.7,2566.4,0.00554366]
[1646729844429,1.27469,2566.7,2566.0,0.32217798]
[1646729844829,1.27469,2566.7,2566.0,0.02217798]
[1646729845031,2.24938,2566.7,2566.0,0.02217798]
[1646729845229,2.24938,2566.7,2565.7,0.00219942]
[1646729845230,1.16168431,2566.5,2565.7,0.00219942]
[1646729845430,0.97468,2566.3,2565.5,3.05898077]
[1646729845630,1.27468,2566.3,2565.5,15.11678135]
[1646729845829,1.27468,2566.3,2565.5,14.00912]
[1646729846131,1.27468,2566.3,2565.4,0.02362116]
[1646729846531,1.27468,2566.3,2565.6,12.06]
[1646729846730,1.27468,2566.3,2565.8,0.00535585]
[1646729847032,0.97468,2566.3,2565.9,12.06]
[1646729847234,2.92407,2566.9,2566.1,12.4533]
[1646729847431,2.92407,2566.9,2566.3,12.06]
[1646729847675,2.92407,2566.9,2566.5,0.97427]
[1646729847879,0.97424,2566.8,2566.1,0.766]
[1646729848080,0.97424,2566.8,2566.1,0.466]
[1646729848379,0.97424,2566.8,2566.2,0.9742353]
[1646729848380,1.130235,2566.8,2566.2,0.9742353]
[1646729848578,0.97424,2566.8,2566.3,0.3]
[1646729848983,0.97424,2566.8,2566.1,13.2782793]
[1646729849181,1.27424,2566.8,2566.3,0.00535515]
[1646729850081,1.27424,2566.8,2566.5,1.22500637]
[1646729850282,1.27424,2566.8,2566.5,13.28500637]
[1646729850482,1.27424,2566.8,2566.5,13.58500637]
[1646729850884,0.97424,2566.8,2566.5,0.3]
[1646729851084,0.97424,2566.8,2566.3,0.30522592]
[1646729851286,0.97424,2566.8,2566.3,1.94858]
[1646729851530,0.97424,2566.8,2566.3,0.00376448]
[1646729851733,0.97424,2566.8,2566.3,1.90903934]
[1646729851935,0.97424,2566.8,2566.7,12.06]
[1646729852436,1.27424,2566.8,2566.6,0.3]
[1646729852632,1.27424,2566.8,2566.4,0.3]
[1646729852834,1.27424,2566.8,2566.4,12.06]
[1646729853035,4.77424,2566.8,2566.3,0.00376448]
[1646729853238,1.27424,2566.8,2566.3,0.00376448]
[1646729853634,1.27424,2566.8,2565.9,1.18782021]
[1646729853841,1.27424,2566.8,2566.0,12.06]
[1646729854037,1.27424,2566.8,2566.3,0.00382252]
[1646729854238,1.27424,2566.8,2566.3,12.06382252]
[1646729854638,1.27424,2566.8,2566.3,0.00382252]
[1646729854838,1.27424,2566.8,2566.3,0.3]
[1646729855040,1.27424,2566.8,2566.5,0.91447494]
[1646729855274,1.27424,2566.8,2566.5,1.21447494]
[1646729855474,1.27424,2566.8,2566.6,12.06]
[1646729855675,1.2434,2567.2,2566.8,12.06]
[1646729855676,1.94846,2567.2,2566.8,12.06]
[1646729856079,1.94846,2567.2,2566.8,12.36]
[1646729856284,1.202,2567.8,2566.8,12.36]
[1646729856482,0.00486348,2567.5,2567.0,12.06]
[1646729856680,0.00486348,2567.5,2567.1,12.9193]
[1646729856879,0.00486348,2567.5,2567.1,15.8406222]
[1646729857284,0.97379,2568.1,2567.1,15.4473222]
[1646729857483,0.97379,2568.1,2567.5,1.07743606]
[1646729857981,0.97379,2568.1,2567.5,1.37743606]
[1646729858183,0.97379,2568.1,2567.5,13.43743606]
[1646729858783,0.00486414,2567.9,2567.5,1.37743606]
[1646729859049,0.97879414,2567.9,2567.5,1.37743606]
[1646729859439,0.97879414,2567.9,2567.5,2.35135606]
[1646729859640,0.97393,2567.9,2567.5,2.35135606]
[1646729860043,0.00486414,2567.8,2567.5,2.35135606]
[1646729860545,0.3,2568.0,2567.9,0.71923532]
[1646729860745,7.80584,2568.8,2567.9,0.71923532]
[1646729860746,4.96624,2568.8,2567.9,1.01923532]
[1646729860947,0.97384,2568.8,2567.9,1.01923532]
[1646729861144,0.97375,2568.6,2567.9,1.01923532]
[1646729861544,6.72172,2568.7,2567.9,1.01923532]
[1646729861545,0.97395,2568.4,2567.9,1.01923532]
[1646729861946,1.27395,2568.4,2567.9,1.01923532]
[1646729862146,2.92186,2568.3,2567.9,0.71923532]
[1646729862546,1.94815,2568.2,2567.9,0.71923532]
[1646729862781,5.44815,2568.2,2567.9,0.71923532]
[1646729862979,1.94815,2568.2,2566.9,15.93288]
[1646729863179,5.44815,2568.2,2567.0,1.59212685]
[1646729863380,6.4223,2568.2,2567.0,1.59212685]
[1646729863582,6.4223,2568.2,2566.7,2.8157]
[1646729863583,2.01496269,2567.9,2566.8,1.15124434]
[1646729863784,2.01496269,2567.9,2566.7,0.97424]
[1646729863785,1.94852,2567.7,2566.7,0.97424]
[1646729863981,1.94852,2567.7,2566.5,15.95528]
[1646729864183,1.94852,2567.7,2566.9,12.06]
[1646729864583,0.97426,2567.6,2567.0,0.974]
[1646729864783,0.97426,2567.6,2566.9,1.94799]
[1646729864784,1.27426,2567.6,2566.9,1.94799]
[1646729864983,1.27426,2567.6,2567.0,0.00553509]
[1646729865286,1.27426,2567.6,2567.2,1.13646443]
[1646729865685,1.27426,2567.6,2567.2,1.43646443]
[1646729866283,1.27426,2567.6,2567.2,0.3]
[1646729866527,1.27426,2567.6,2567.0,0.30553515]
[1646729866727,1.27426,2567.6,2567.0,0.00553515]
[1646729866930,1.94847,2567.5,2566.9,2.24799]
[1646729867128,1.94847,2567.5,2566.9,1.94799]
[1646729867328,2.24847,2567.5,2567.0,0.00553509]
[1646729868130,2.24847,2567.5,2566.9,1.94799]
[1646729868632,2.24847,2567.5,2567.0,0.00553506]
[1646729869431,2.24847,2567.5,2566.9,2.24799]
[1646729869633,2.24847,2567.5,2567.0,0.0053524]
[1646729870588,1.2237,2568.0,2567.1,0.97411]
[1646729870782,1.2237,2568.0,2567.1,1.27411]
[1646729871185,0.00485094,2567.9,2567.1,1.27411]
[1646729871585,0.00485094,2567.9,2567.4,1.06760587]
[1646729871786,9.110547,2568.1,2567.4,1.06760587]
[1646729871787,2.404247,2568.1,2567.4,1.06760587]
[1646729871984,0.97406,2567.7,2567.4,4.56760587]
[1646729872190,0.155947,2568.1,2567.4,4.86760587]
[1646729872384,0.155947,2568.1,2567.4,16.92760587]
[1646729872584,0.155947,2568.1,2567.5,12.526]
[1646729872789,1.94797,2568.5,2567.8,1.06174614]
[1646729872991,0.97386,2568.4,2567.9,3.5]
[1646729873193,0.97386,2568.4,2567.8,13.42174614]
[1646729874233,0.97386,2568.4,2567.8,14.39553084]
[1646729874431,0.97386,2568.4,2568.0,0.97379]
[1646729875234,0.97386,2568.4,2567.8,1.36174614]
[1646729875434,1.429784,2568.4,2567.8,1.36174614]
[1646729875634,0.00484543,2568.3,2567.8,1.36174614]
[1646729876235,0.00484543,2568.3,2567.6,1.94769]
[1646729876436,0.97395,2568.2,2567.6,2.24769]
[1646729876635,1.94793,2568.2,2567.5,0.02362116]
[1646729877036,0.00484543,2568.1,2567.5,0.02362116]
[1646729877435,0.00484543,2568.1,2568.0,0.90684263]
[1646729877695,0.00484543,2568.1,2567.7,4.47392]
[1646729877886,0.97395,2568.2,2567.7,0.92392]
[1646729878090,0.97879543,2568.2,2567.7,1.22392]
[1646729878287,0.97879543,2568.2,2567.7,0.3]
[1646729878590,0.97879543,2568.2,2567.5,0.02362116]
[1646729878790,0.97879543,2568.2,2567.2,1.94797]
[1646729878791,1.95289543,2568.2,2567.2,1.94797]
[1646729879086,1.95289543,2568.2,2567.3,1.59197519]
[1646729879087,1.94805,2568.2,2567.3,1.59197519]
[1646729879289,1.94805,2568.2,2567.2,1.94797]
[1646729879487,0.97409,2567.9,2567.3,1.59196407]
[1646729879891,1.9482,2567.9,2567.3,1.59196407]
[1646729880090,0.97409,2567.9,2567.4,0.97401]
[1646729880289,1.27409,2567.9,2567.4,0.97401]
[1646729880488,1.27893506,2567.9,2567.4,0.97401]
[1646729880698,0.00484506,2567.9,2567.5,1.59186268]
[1646729880891,1.2158,2568.4,2568.0,0.41641067]
[1646729881091,10.21195,2569.0,2568.0,0.41641067]
[1646729881092,1.94794,2568.5,2568.0,0.41641067]
[1646729881735,0.97386,2568.6,2568.0,0.41641067]
[1646729881936,1.2158,2569.0,2568.0,0.71641067]
[1646729882337,0.97374,2568.8,2568.0,0.71641067]
[1646729882937,0.97374,2568.8,2568.0,0.41641067]
[1646729883137,0.9739,2568.7,2568.0,0.41641067]
[1646729883337,0.97402,2568.6,2568.0,0.41641067]
[1646729883740,0.3,2568.7,2568.0,0.41641067]
[1646729884138,0.00483332,2568.4,2568.0,0.41641067]
[1646729884540,1.14219097,2568.3,2568.0,0.41641067]
[1646729884940,2.14219097,2568.3,2568.0,0.41641067]
[1646729885189,1.0,2568.3,2568.0,0.41641067]
[1646729885384,0.00483332,2568.3,2568.0,0.41641067]
[1646729885580,0.97891332,2568.3,2568.0,0.41641067]
[1646729885780,1.27891332,2568.3,2568.0,0.41641067]
[1646729886183,1.27408,2568.3,2568.0,0.41641067]
[1646729886407,0.3,2568.3,2568.0,0.41641067]
[1646729886582,0.00483332,2568.3,2568.0,0.41641067]
[1646729887384,2.2481,2568.4,2568.0,0.71641067]
[1646729887787,0.00483332,2568.3,2568.0,0.71641067]
[1646729887987,0.00483332,2568.3,2568.1,3.5]
[1646729888588,0.00483332,2568.3,2568.0,0.71641067]
[1646729888787,1.94763,2568.9,2568.0,0.71641067]
[1646729889035,0.00483332,2568.3,2568.0,0.71641067]
[1646729889832,0.97388,2568.6,2568.0,0.71641067]
[1646729890034,0.97388,2568.5,2568.0,12.77641067]
[1646729890232,1.94763,2568.9,2568.0,12.77641067]
[1646729890233,0.00483332,2568.3,2568.0,12.77641067]
[1646729890433,0.00483332,2568.3,2568.2,12.4533]
[1646729890638,3.332e-05,2568.3,2568.2,18.01060674]
[1646729890845,3.332e-05,2568.3,2568.2,18.31060674]
[1646729891036,4.13561,2569.6,2568.2,18.31060674]
[1646729891233,4.13561,2569.6,2569.0,0.3]
[1646729891435,4.13561,2569.6,2568.9,0.973447]
[1646729891640,2.92131,2569.6,2569.0,0.3]
[1646729892695,0.00482132,2569.4,2569.0,0.3]
[1646729892888,0.97826132,2569.4,2569.0,0.3]
[1646729893088,0.97826132,2569.4,2568.9,0.3]
[1646729893289,0.97826132,2569.4,2568.6,2.244139]
[1646729893487,0.97344,2569.4,2568.7,0.97351]
[1646729893888,0.00482132,2569.3,2568.6,1.40996992]
[1646729894088,0.97843132,2569.3,2568.6,1.40996992]
[1646729894689,0.97361,2569.3,2568.6,1.40996992]
[1646729895090,0.00482132,2569.1,2568.6,1.40996992]
[1646729895292,0.97361,2569.0,2568.6,1.40996992]
[1646729896294,0.00482132,2568.9,2568.6,0.3]
[1646729896731,1.95215132,2568.9,2568.5,2.2470734]
[1646729897133,1.94733,2568.9,2568.5,2.2470734]
[1646729897337,1.94733,2568.9,2568.5,3.26415094]
[1646729897636,1.95185334,2568.9,2568.5,3.26415094]
[1646729898340,1.94733,2568.9,2568.5,3.26415094]
[1646729898540,0.00452334,2568.8,2568.5,3.26415094]
[1646729898942,0.00452334,2568.8,2568.5,4.23774094]
[1646729899144,0.00452334,2568.8,2568.6,13.0335234]
[1646729899343,0.00452334,2568.8,2568.6,14.9804534]
[1646729899547,0.97361,2569.0,2568.6,14.9804534]
[1646729899843,0.00452334,2568.8,2568.6,14.9804534]
[1646729900485,0.00452334,2568.8,2568.7,13.03346]
[1646729900683,0.97361,2569.0,2568.7,13.03346]
[1646729900883,0.97361,2569.0,2568.7,13.33346]
[1646729901082,0.00454178,2568.8,2568.7,13.33346]
[1646729901285,0.97361,2569.0,2568.8,2.50616085]
[1646729901483,0.97361,2569.0,2568.8,0.00616085]
[1646729902989,1.94695,2569.3,2568.8,0.97959605]
[1646729903188,0.155868,2569.1,2568.9,0.97344]
[1646729903589,1.94695,2569.3,2568.9,1.27344]
[1646729904641,0.00480997,2569.2,2568.9,1.27344]
[1646729904840,0.97827997,2569.2,2568.9,1.27344]
[1646729905039,0.97827997,2569.2,2568.8,0.00616085]
[1646729905542,0.97347,2569.2,2568.8,0.00616085]
[1646729905742,0.00480997,2569.1,2568.8,0.00616085]
[1646729906740,0.97347,2569.2,2568.8,0.00616085]
[1646729906942,0.00480997,2569.1,2568.8,0.00616085]
[1646729907888,4.47347,2569.2,2568.8,0.00616085]
[1646729908291,2.92138,2569.0,2568.8,0.00616085]
[1646729909293,0.97347,2569.2,2568.8,0.97964365]
[1646729909493,0.00480997,2569.0,2568.8,0.97964365]
[1646729909695,0.00480997,2569.0,2568.8,1.27964365]
[1646729909894,0.00480997,2569.0,2568.9,12.06]
[1646729910293,1.94697,2569.4,2568.9,12.06]
[1646729910494,0.00144387,2569.1,2568.9,12.06]
[1646729911533,1.94697,2569.4,2569.0,14.006797]
[1646729911732,0.00144387,2569.1,2569.0,0.973417]
[1646729912133,0.00144387,2569.1,2568.8,0.30616085]
[1646729912736,0.97339,2569.3,2568.8,0.30616085]
[1646729912934,0.97357,2569.2,2568.8,0.30616085]
[1646729913335,0.00144387,2569.1,2568.8,0.30616085]